Cogmind - Beta 13 @@@ ROGUE MODE // 2024.04.05 @ 17:39:08 Player: TheTakerOFToes Result: Destroyed by G-34 Mercenary with Small Laser Performance ------------- Evolutions (0) 0 Regions Visited (1) 200 Robots Destroyed (9) 45 Value Destroyed (102) 102 Prototype IDs (0) 0 Alien Tech Used (0) 0 Bonus (0) 0 TOTAL SCORE: 347 Bonus ------- None Cogmind --------- Core Integrity 0/250 Matter 265/300 Energy 99/100 System Corruption 0% Temperature Cool (6) Movement Core (350) Ox6 Location -10/Materials Parts ------- > --- POWER (1) -------- (None) > --- PROPULSION (2) --- (None) > --- UTILITY (2) ------ Large Storage Unit Signal Interpreter > --- WEAPON (2) ------- (None) > --- INVENTORY (15) --- Light Ion Engine Seismic Detector EM Pulse Gun Peak State ------------ > --- POWER ------------ Ion Engine > --- PROPULSION ------- Wheel Wheel > --- UTILITY ---------- Improved Terrain Scanner Seismic Detector > --- WEAPON ----------- EM Pulse Gun EM Pulse Gun > --- INVENTORY -------- Light Ion Engine Medium Laser Small Laser [Rating: 9] Favorites ----------- Power Ion Engine Engine Ion Engine Propulsion Wheel Leg Aluminum Leg Wheel Wheel Flight Unit Flight Unit Utility Signal Interpreter Device Seismic Detector Storage Large Storage Unit Processor Signal Interpreter Weapon EM Pulse Gun Energy Gun EM Pulse Gun Ballistic Gun Assault Rifle Special Weapon Mining Laser Build | -11 -10 ------- Run | Yrd Mat Slots Evolved . | . . Power . | . . Propulsion . | . . Utility . | . . Weapon . | . . Parts Attached 17 | 12 5 Power 2 | 2 . Engine 2 | 2 . Core . | . . Reactor . | . . Propulsion 5 | 4 1 Treads . | . . Leg 2 | 2 . Wheel 2 | 2 . Hover . | . . Flight 1 | . 1 Utility 5 | 2 3 Device 3 | 2 1 Storage 1 | . 1 Processor 1 | . 1 Hackware . | . . Protection . | . . Artifact . | . . Weapon 5 | 4 1 Energy Gun 3 | 3 . Energy Cannon . | . . Ballistic Gun 1 | . 1 Ballistic Cannon . | . . Launcher . | . . Special Weapon 1 | 1 . Impact Weapon . | . . Slashing Weapon . | . . Piercing Weapon . | . . Special Melee Weapon . | . . Unidentified Prototypes . | . . Parts Lost 7 | . 7 Power 1 | . 1 Propulsion 3 | . 3 Utility 1 | . 1 Weapon 2 | . 2 Highest Loss Streak 4 | . 4 To Critical Strikes . | . . Average Slot Usage (%) 77 | . 77 Engine 10 | . 10 Wheel 17 | . 17 Flight 7 | . 7 Device 9 | . 9 Storage 7 | . 7 Processor 9 | . 9 Energy Gun 3 | . 3 Ballistic Gun 8 | . 8 Special Weapon 3 | . 3 Naked Turns . | . . Heaviest Build 27 | 11 27 Greatest Support 20 | 20 20 Greatest Overweight (x) 6 | . 6 Average Overweight (x) . | . 1 Largest Inventory Capacity 15 | 5 15 Average Capacity 8 | 5 10 Most Carried 5 | 5 5 Average Carried 3 | 2 3 Final Capacity 15 | 5 15 Final Carried 4 | 4 3 Class Distribution -------------------- 53% | Mutant 46% | Scavenger-Mutant Dominant Class ---------------- Mutant | -10/Materials Resources | -11 -10 ----------- Run | Yrd Mat Matter Collected 333 | 320 13 Remotely . | . . Salvage Created 180 | 114 66 Parts 19 | 13 6 Haulers Intercepted . | . . Recyclers Shooed . | . . Parts Field Recycled . | . . Retrieved Matter . | . . Parts Self-Destructed . | . . Prevented . | . . Kills | -11 -10 ------- Run | Yrd Mat Combat Hostiles Destroyed 4 | 1 3 Guns 4 | 1 3 Classes Destroyed 5 | 3 2 Worker 1 | 1 . Tunneler 3 | 3 . Watcher 1 | . 1 Swarmer 3 | . 3 Grunt 1 | 1 . Best Kill Streak 3 | 2 3 Combat Bots Only 3 | 1 3 Max Kills in Single Turn 1 | 1 1 Gunslinging . | . . Exploded . | . . Melee . | . . Uniques/NPCs Destroyed . | . . Combat | -11 -10 -------- Run | Yrd Mat Hostile Shots Fired 98 | 6 92 Missed 29 | . 29 Damage Taken 672 | 67 605 Core 253 | 20 233 Absorbed by Shields . | . . Core Remaining (%) 92 | 92 . Volleys Fired 22 | 11 11 Largest 2 | 2 1 Hottest 140 | 140 20 Shots Fired 32 | 21 11 Gun 30 | 19 11 Cannon . | . . Launcher . | . . Special 2 | 2 . Kinetic 11 | . 11 Thermal 2 | 2 . Explosive . | . . Electromagnetic 19 | 19 . Robot Hit Streak 3 | 3 1 Robot Miss Streak 3 | 2 3 Penetration Max . | . . Secondary Targets . | . . Shots Hit Robots 14 | 10 4 Core Hits 10 | 6 4 Critical Kills . | . . Critical Parts Destroyed . | . . Critical Strikes 2 | 2 . Corrupt 2 | 2 . Melee Attacks . | . . Impact . | . . Slashing . | . . Piercing . | . . Sneak Attacks . | . . Combat Hostiles . | . . Follow-up Attacks . | . . Damage Inflicted 216 | 157 59 Guns 216 | 157 59 Cannons . | . . Explosions . | . . Melee . | . . Ramming . | . . Kinetic 59 | . 59 Thermal . | . . Explosive . | . . Electromagnetic 157 | 157 . Impact . | . . Slashing . | . . Piercing . | . . Highest Corruption . | . . Average Corruption . | . . Corruption Purged . | . . Corruption Blocked . | . . Overload Shots . | . . Overflow Damage . | . . Projectiles . | . . Explosions . | . . Melee . | . . Knockbacks . | . . Impact . | . . Kinetic . | . . Secondary . | . . Self-Inflicted Damage . | . . Shots . | . . Rammed . | . . Targets Rammed . | . . Kicked . | . . Crushed . | . . Highest Temperature 120 | 120 . Average Temperature 47 | 47 . Received Heat Transfer 234 | 36 198 Siege Activations . | . . Robots Corrupted . | . . Combat Hostiles . | . . Parts Fried 1 | 1 . Impact Corruptions . | . . Robots Melted . | . . Combat Hostiles . | . . Parts Melted . | . . Heat Transferred . | . . Parts Sabotaged . | . . Parts Stolen . | . . Parts Stripped . | . . Power Chain Reactions . | . . Alert | -11 -10 ------- Run | Yrd Mat Peak Influence 88 | 40 88 Initial 26 | . 26 Average 44 | 18 58 Maximum Alert Level . | . . Low Security (%) 100 | 100 100 Level 1 . | . . Level 2 . | . . Level 3 . | . . Level 4 . | . . Level 5 . | . . High Security . | . . Max Security . | . . Squads Dispatched 1 | . 1 Investigation . | . . Extermination . | . . Reinforcement 1 | . 1 Assault . | . . Garrison . | . . Intercept . | . . Searches Triggered . | . . Construction Impeded . | . . Haulers Reinforced . | . . Active Scanning Responses . | . . Cargo Convoy Interrupts . | . . Stealth | -11 -10 --------- Run | Yrd Mat Distress Signals 1 | . 1 Communications Jammed . | . . Distress Signals . | . . Times Spotted 7 | 1 6 Peak Tracking Total 5 | 1 5 Tactical Retreats . | . . Traps | -11 -10 ------- Run | Yrd Mat Traps Triggered . | . . Indirectly . | . . Trap Hack Attempts . | . . Triggered . | . . Disarmed . | . . Reprogrammed . | . . Reused . | . . Traps Extracted . | . . Installed . | . . Triggered . | . . Machines | -11 -10 ---------- Run | Yrd Mat Machines Disabled . | . . Max in Single Turn . | . . Machines Repaired . | . . Machines Dismantled . | . . Machines Sabotaged . | . . Overloaded Fab Kills . | . . Hacking | -11 -10 --------- Run | Yrd Mat Machines Accessed . | . . Terminals . | . . Fabricators . | . . Repair Stations . | . . Recycling Units . | . . Scanalyzers . | . . Garrison Access . | . . Total Hacks . | . . Successful . | . . Failed . | . . Catastrophic . | . . Database Lockouts . | . . Manual . | . . Terminals . | . . Fabricators . | . . Repair Stations . | . . Recycling Units . | . . Scanalyzers . | . . Garrison Access . | . . Terminal Hacks . | . . Fabricator Hacks . | . . Repair Station Hacks . | . . Recycling Unit Hacks . | . . Scanalyzer . | . . Garrison Access Hacks . | . . Unauthorized Hacks . | . . Terminals . | . . Fabricators . | . . Repair Stations . | . . Recycling Units . | . . Scanalyzers . | . . Garrison Access . | . . Data Cores Recovered . | . . Used . | . . Hacking Detections . | . . Full Trace Events . | . . Feedback Events . | . . Feedback Blocked . | . . Robot Schematics Acquired . | . . Robots Built . | . . Authchips . | . . Time . | . . Total Robot Build Rating . | . . Part Schematics Acquired . | . . Parts Built . | . . Authchips . | . . Time . | . . Total Part Build Rating . | . . Parts Repaired . | . . Time . | . . Parts Recycled . | . . Recycled Matter . | . . Retrieved Matter . | . . Retrieved Components . | . . Parts Scanalyzed . | . . Part Schematics Acquired . | . . Parts Damaged . | . . Bothacking | -11 -10 ------------ Run | Yrd Mat Used RIF Installer . | . . Robots Hacked . | . . Non-combat . | . . Combat . | . . Robot Hacks Applied . | . . Relay Couplers Released . | . . Fabnet Peak Effective % . | . . Robots Rewired . | . . Allies Hacked . | . . Hacks Repelled . | . . Allies | -11 -10 -------- Run | Yrd Mat Total Allies . | . . Largest Group . | . . Highest-Rated Group . | . . Highest-Rated Ally . | . . Total Orders . | . . Ally Attacks . | . . Total Damage . | . . Kills . | . . Allies Corrupted . | . . Allies Melted . | . . Intel | -11 -10 ------- Run | Yrd Mat Robot Analysis Total . | . . Derelict Logs Recovered . | . . Drone Launches . | . . Drone Recoveries . | . . Exploration | -11 -10 ------------- Run | Yrd Mat Turns Passed 419 | 143 276 Spaces Moved 254 | 107 147 Core 27 | 22 5 Treads . | . . Legs . | . . Wheels 197 | 85 112 Hover . | . . Flight 30 | . 30 Fastest Speed 50 | 50 80 Average Speed 126 | 73 165 Slowest Speed 525 | 80 525 Overloaded Moves . | . . Propulsion Burnouts . | . . Robots Hopped . | . . Cave-ins Triggered . | . . Exploration Rate (%) 16 | 6 26 Regions Visited 1 Branch Regions . Pre-discovered Areas . | . . Known Exits Taken . | . . Unknown Exits Taken 1 | 1 . Scrap Searched . | . . Spaces Dug . | . . Terrain Destroyed 1 | 1 . Melee . | . . Projectile 1 | 1 . AOE . | . . Terrain Rammed . | . . Walls Destroyed . | . . Machines Disabled . | . . Actions | -11 -10 --------- Run | Yrd Mat Total 323 | 148 175 Wait . | . . Move 253 | 106 147 Hop . | . . Pick Up 19 | 13 6 Fast Attach . | . . Attach 16 | 11 5 Detach 5 | 4 1 Swap 1 | 1 . Drop 7 | 2 5 Fire 22 | 11 11 Melee . | . . Ram . | . . Kick . | . . Crush . | . . Escape Stasis . | . . Rewire . | . . Trap . | . . Miscellaneous . | . . Route ------- -11/Scrapyard -10/Materials History --------- Turn | Location | Event 2 | -11/Scrapyard | Met Revision 17 61 | -11/Scrapyard | Discovered new exit (range 8) 144 | -11/Scrapyard | Entered Materials 285 | -10/Materials | Lost 3 parts (1n1u1w) 385 | -10/Materials | Core integrity fell below 50% 413 | -10/Materials | Core integrity fell below 20% 420 | -10/Materials | Destroyed by G-34 Mercenary with Small Laser Last Messages --------------- Overweight warning: You are carrying more than your current propulsion can efficiently support, which slows movement; see status page ('s') or the top of the parts list for the specific mass vs. support values. R-06 Scavenger collects Lgt. Ion Engine. Acquired Lgt. Ion Engine. The Lrg. Storage Unit has expanded your inventory capacity. Items held in inventory do not count towards total mass and therefore cannot slow you down. K-01 Serf collects debris. You may prefer to play using a different font style. Try some of the others via the option menu's second option. Ion Engine destroyed. Assault Rifle destroyed. Wheel destroyed. Flight Unit destroyed. [Achievement: First Step to Greatness] Map ----- +----------------------------------------------------+ | | | | | | | | | | | | | | | | | ?????????????????????????????????????????????????? | | ?????????????????????????????????????????????????? | | ?????????????????????????????????????????????????? | | ?????????????????????????????????????????????????? | | ?????????????????????????????????????????????????? | | ?????????????????????????????????????????????????? | | ?????????????????????????????????????????????????? | | ?????????????????????????????????????????????????? | | ?????????????????????????????????????????????????? | | ?????????????????????????????????????????????????? | | ?????????????????????????????????????????????????? | | ?????????????????????????????????????????????????? | | ?????????????????????????????????????????????????? | | ?????????????????????????????????????????????????? | | ??????????? ###############??????????????????????? | | ?????????? #??????????????????????? | | ?????????? +??????????????????????? | | ?????????? k @#??????????????????????? | | ?????????????????######## #??????????????????????? | | ????????????????????????# #??????????????????????? | | ????????????????????????# #??????????????????????? | | ?????????????????########g####???????????????????? | | ?????????????????# #???????????????????? | | ?????????????????# #???????????????????? | | ?????????????????# """ """ #???????????????????? | | ?????????????????# """ """ #???????????????????? | | ?????????????????# """ """ #??????? ??????????? | | ?????????????????# #????? ????????????? | | ?????????????????# #?? #?????????????? | | ?????????????#############+###? #??????????????? | | ?????????????+ #???## ### #??????????????? | | ????? # ###### #??????????????? | | ????? / + #??????????????? | | ????????????## # ##?????????????? | | ?????????????# # #?????????????? | | ??????????? ?# # #?????????????? | | ??????????? ?# + ###???????????? | | ?????????????# #% ???????????? | | ?????????????# # * ?????????? | | ?????????????# # """" ?????????? | | ?????"??? ???# # """" "?????????? | | ??????"??# ?# # ###### """" ??????????? | +----------------------------------------------------+ Best States ------------- Heat Dissipation 25 Energy Generation 10 Energy Capacity 250 Matter Stores 300 Matter Capacity 300 Sight Range 16 Robot Scan Range 14 Terrain Scan Range 16 Terrain Scan Density 10 Evasion (%) 50 Item Schematics ----------------- None Robot Schematics ------------------ None Fabricated ------------ Nothing Alien Tech Used ----------------- None Achievements -------------- First Step to Greatness Uninvited Guest Challenges ------------ None Game ------ Seed ThermoelectricBurstAnalyzer Manual? 0 Play Time 00:18:42 Cumulative 0.3 hours Start 2024.04.05 @ 17:19:28 End 2024.04.05 @ 17:39:08 Sessions 1 Manual Loads 0 Difficulty Rogue Special Mode None Game No. 1 Rogue 1 Adventurer 0 Explorer 0 Win Type - Total 0 Types 0/0/0/0/0/0/0/0/0 Lore% 0 Gallery% 1 Achievement% 0 Wizard Run 0 Options --------- Layout 1 ASCII 0 Keyboard 0 Movement Mouse Keybinds 0 Fullscreen 1 Font 24/Smallcaps Map View 50x35 Zoom Use 0% Tactical HUD 0 Map Filters NONE Filters NONE Steam 1 RUN: 04795af5-d07b-475d-9a83-372c3e818804